bitfinex-derivatives/quotes_ETHF0:USTF0_20260312
["timestamp","ask_amount","ask_price","bid_price","bid_amount"]
[1773300669973,9.47465536,2036.2,2035.8,0.08244504]
[1773300670368,0.00554639,2036.3,2035.8,0.08244504]
[1773300670566,2.6239185,2036.3,2035.6,1.68529554]
[1773300670867,2.61837211,2036.2,2035.4,1.67685074]
[1773300671470,2.61837211,2035.9,2035.4,1.67685074]
[1773300671667,2.61837211,2035.9,2035.4,1.68250061]
[1773300672168,2.61837211,2035.7,2034.8,1.66719531]
[1773300672673,3.30931305,2037.3,2035.6,7.6385915]
[1773300672879,3.30931305,2037.3,2036.0,4.05057844]
[1773300673476,3.30931305,2037.3,2036.1,8.79]
[1773300673673,3.30939092,2036.9,2036.1,0.10101757]
[1773300674079,3.30939092,2036.9,2036.1,0.0037532]
[1773300674279,3.30939092,2036.6,2035.9,0.09726437]
[1773300674675,7.96343571,2036.5,2035.7,0.15210252]
[1773300674875,3.27808462,2036.4,2035.7,0.15210252]
[1773300675377,3.27808462,2036.4,2035.8,0.15088191]
[1773300676380,11.24152033,2036.4,2035.8,0.15088191]
[1773300676771,6.00052033,2036.4,2035.8,0.15088191]
[1773300676976,2.61837211,2036.7,2035.8,0.15088191]
[1773300677279,2.61837211,2036.5,2035.8,0.15088191]
[1773300678470,2.61837211,2036.4,2035.7,0.25161405]
[1773300678674,2.61837211,2036.4,2035.7,2.80075252]
[1773300679074,2.61837211,2036.2,2035.7,2.80075252]
[1773300679875,2.61837211,2036.5,2035.7,2.80075252]
[1773300680080,2.61837211,2036.3,2035.7,2.80075252]
[1773300680584,8.61889244,2036.3,2035.7,2.80075252]
[1773300680784,2.61837211,2036.3,2035.7,2.80075252]
[1773300681584,3.40452044,2036.5,2035.7,2.80075252]
[1773300682177,3.40452044,2036.2,2035.7,2.80075252]
[1773300682778,9.40504077,2036.2,2035.7,2.80075252]
[1773300683680,3.40452044,2036.4,2035.7,2.80075252]
[1773300684081,3.40452044,2036.4,2035.7,0.25161405]
[1773300684281,3.40452044,2036.2,2035.7,0.25161405]
[1773300684688,3.40452044,2036.2,2035.7,3.44219607]
[1773300684877,3.40452044,2036.0,2035.7,3.44219607]
[1773300685079,3.40452044,2036.0,2035.7,2.40693086]
[1773300685080,3.03622526,2036.0,2035.7,2.40693086]
[1773300685583,2.66791923,2036.0,2035.7,2.40693086]
[1773300685778,8.66843956,2036.0,2035.3,3.19058202]
[1773300685985,2.66791923,2036.0,2035.3,3.19507334]
[1773300686686,2.66791923,2036.0,2035.3,3.44498692]
[1773300687581,8.66843956,2036.0,2035.3,3.44498692]
[1773300689887,3.40452044,2036.5,2035.3,3.44498692]
[1773300690190,3.40452044,2036.3,2035.3,3.44498692]
[1773300690990,3.40452044,2036.5,2035.3,3.69061692]
[1773300691189,3.40452044,2036.5,2035.6,3.19058202]
[1773300691990,3.40452044,2036.4,2035.7,3.19058202]
[1773300692591,3.40452044,2036.2,2035.7,3.19058202]
[1773300692993,6.00052033,2036.1,2035.7,3.19058202]
[1773300693193,3.65004044,2036.4,2035.7,3.19058202]
[1773300693594,9.40504077,2036.2,2035.7,3.19058202]
[1773300693898,3.40452044,2036.3,2035.7,3.19058202]
[1773300694094,9.03680707,2036.2,2035.7,3.19058202]
[1773300694290,3.03628674,2036.1,2035.7,3.19058202]
[1773300694495,8.66857337,2036.1,2035.7,3.19058202]
[1773300694696,8.30033967,2036.1,2035.7,3.19058202]
[1773300695195,5.63228663,2036.1,2035.7,3.19058202]
[1773300695697,5.26401134,2036.1,2035.7,3.19058202]
[1773300695898,4.89573605,2036.0,2035.7,3.19058202]
[1773300696099,3.40452044,2036.2,2035.8,3.19058202]
[1773300696307,4.89573605,2036.1,2035.8,3.19058202]
[1773300696497,3.40452044,2036.2,2035.8,3.19058202]
[1773300696897,4.89573605,2036.0,2035.8,3.19058202]
[1773300697093,4.52746076,2036.0,2035.9,4.05057844]
[1773300697295,3.40452044,2036.2,2035.9,4.05057844]
[1773300697900,4.04195537,2036.0,2035.9,4.05057844]
[1773300698204,3.67368008,2036.0,2035.9,6.03390252]
[1773300698696,3.17518235,2035.9,2035.4,3.19058202]
[1773300699906,3.09089037,2036.1,2035.4,3.19058202]
[1773300700105,2.84533037,2036.1,2035.4,3.43923093]
[1773300700905,2.53125105,2036.3,2035.4,3.43923093]
[1773300702406,2.61438258,2036.1,2035.4,3.43923093]
[1773300705905,8.77487159,2036.9,2035.4,3.43923093]
[1773300706212,2.60942779,2036.7,2036.1,4.41013541]
[1773300706511,2.60942779,2037.0,2036.1,4.41013541]
[1773300708717,2.98465055,2037.2,2036.1,4.41013541]
[1773300709706,2.98333213,2037.3,2036.1,4.41013541]
[1773300710406,3.06531494,2037.3,2036.3,2.17071658]
[1773300710611,3.06531494,2037.3,2036.4,4.33676775]
[1773300711508,3.05187545,2037.8,2036.9,2.17071658]
[1773300711715,3.05779313,2038.0,2037.0,4.33676775]
[1773300712213,0.24526,2038.5,2037.0,4.33676775]
[1773300712404,3.33364152,2038.6,2037.7,4.33676775]
[1773300712605,3.58350774,2038.6,2037.7,4.34178706]
[1773300712811,3.58350774,2038.6,2037.7,0.00501931]
[1773300713013,3.58350774,2038.6,2037.7,4.34178706]
[1773300715316,3.33825774,2038.6,2037.7,4.34178706]
[1773300716315,3.31579147,2038.6,2037.7,4.34178706]
[1773300716614,0.00461622,2038.6,2037.7,4.34178706]
[1773300716819,3.06675337,2038.6,2037.7,4.34178706]
[1773300717318,3.06675337,2038.6,2037.7,4.59086689]
[1773300718613,0.00461622,2038.6,2037.7,4.59086689]
[1773300719414,6.03091,2039.4,2037.7,4.59086689]
[1773300719415,3.05626215,2039.3,2038.5,4.33676775]
[1773300720318,3.06034722,2039.3,2038.5,4.33676775]
[1773300721422,4.33966324,2040.7,2039.4,4.33676775]
[1773300721620,4.09466324,2040.6,2039.4,4.33676775]
[1773300722116,4.33968324,2040.5,2039.4,4.33676775]
[1773300722316,4.34365451,2040.5,2039.4,4.34300773]
[1773300722725,4.33979324,2039.6,2039.0,4.33676775]
[1773300723022,4.33979324,2039.6,2038.2,4.33676775]
[1773300723220,4.09466324,2039.5,2038.2,4.33676775]
[1773300723521,4.09466324,2039.3,2038.2,4.33676775]
[1773300723722,4.09466324,2039.3,2038.2,4.34056541]
[1773300724423,0.24515,2039.4,2038.3,4.33676775]
[1773300724722,4.33981324,2039.4,2038.3,4.33676775]
[1773300725621,4.09466324,2039.4,2038.3,4.33676775]
[1773300725816,4.33982324,2039.4,2038.3,4.33676775]
[1773300726720,4.33982324,2039.4,2038.2,0.25021606]
[1773300726925,4.33982324,2039.4,2038.0,4.33676775]
[1773300726926,4.09466324,2038.8,2038.0,4.33676775]
[1773300727119,4.09466324,2038.7,2038.0,4.33676775]
[1773300727318,4.33987324,2039.0,2038.0,4.33676775]
[1773300727519,6.428,2038.9,2038.0,4.33676775]
[1773300727924,4.09466324,2038.8,2038.0,4.33676775]
[1773300728225,4.09466324,2038.8,2038.0,4.34128081]
[1773300728828,4.09466324,2038.6,2037.7,4.33676775]
[1773300729520,4.09466324,2038.4,2037.1,4.33676775]
[1773300729723,4.09466324,2038.2,2037.1,4.34284508]
[1773300730117,4.09466324,2038.2,2037.1,4.58227857]
[1773300730721,4.09466324,2038.0,2037.1,4.58227857]
[1773300731631,4.09466324,2037.8,2037.1,4.58227857]
[1773300732021,4.09466324,2037.8,2037.1,0.24551082]
[1773300732228,10.52266324,2037.8,2037.1,4.58227857]
[1773300732532,4.09466324,2037.7,2037.1,4.34284508]
[1773300734432,4.09466324,2037.7,2037.1,0.00607733]
[1773300734931,4.09466324,2038.2,2037.2,4.33676775]
[1773300735129,4.09466324,2038.0,2037.2,4.33676775]
[1773300735835,10.52266324,2038.0,2037.2,4.33676775]
[1773300736130,6.428,2038.0,2037.2,4.33676775]
[1773300736333,10.52266324,2038.0,2037.2,4.33676775]
[1773300736828,4.09466324,2037.9,2037.2,4.33676775]
[1773300739533,10.52366324,2037.9,2037.2,4.33676775]
[1773300740237,6.429,2037.9,2037.2,4.58414139]
[1773300741235,0.00377731,2038.9,2037.3,4.36139606]
[1773300741434,4.25640852,2038.7,2037.4,4.11598606]
[1773300741631,4.25640852,2038.6,2037.4,4.11598606]
[1773300741831,0.00377731,2038.9,2037.9,4.36131606]
[1773300741832,4.26018583,2038.9,2037.9,4.36131606]
[1773300742037,4.26018583,2038.9,2037.9,4.11598606]
[1773300742731,4.25640852,2038.7,2037.9,4.11598606]
[1773300743144,4.25640852,2038.5,2037.9,4.11598606]
[1773300743740,4.25640852,2038.5,2037.5,4.11598606]
[1773300743940,4.25640852,2038.3,2037.5,4.11598606]
[1773300744340,6.429,2038.2,2037.5,4.11598606]
[1773300745040,10.68540852,2038.3,2037.5,4.11598606]
[1773300745943,4.25640852,2038.2,2037.5,4.11598606]
[1773300748854,6.429,2038.1,2037.5,4.11598606]
[1773300749055,4.25640852,2038.0,2037.3,4.11598606]
[1773300749759,6.429,2038.1,2037.3,4.11598606]
[1773300750058,10.68540852,2038.1,2037.3,4.11598606]
[1773300750259,4.25640852,2038.0,2037.3,4.11598606]
[1773300751761,4.25640852,2038.0,2037.3,4.35836567]
[1773300752764,6.429,2038.1,2037.3,4.35836567]
[1773300754463,6.429,2038.1,2037.3,4.60376567]
[1773300755763,4.25640852,2038.3,2037.3,4.60376567]
[1773300755959,6.429,2038.3,2037.3,4.60376567]
[1773300756365,4.25640852,2038.6,2037.3,4.60376567]
[1773300756566,10.68540852,2038.6,2037.3,4.60376567]
[1773300757065,4.25640852,2038.5,2037.3,4.60376567]
[1773300758764,4.25640852,2038.5,2037.8,4.11598606]
[1773300759259,10.68540852,2038.8,2037.8,4.11598606]
[1773300759465,4.25640852,2038.7,2037.8,4.11598606]
[1773300766768,4.50165852,2038.7,2037.8,4.11598606]
[1773300767172,4.50165852,2038.7,2037.8,0.24160859]
[1773300767471,4.50165852,2038.7,2037.7,4.04963089]
[1773300767673,4.25640852,2038.7,2037.7,4.04963089]
[1773300770877,4.25640852,2038.7,2037.8,10.22217366]
[1773300772177,4.25640852,2038.7,2037.9,6.10674471]
[1773300772777,4.25640852,2038.7,2038.0,4.11542895]
[1773300773075,4.25640852,2038.7,2037.9,6.10674471]
[1773300773277,4.25640852,2038.7,2037.9,10.22217366]
[1773300773470,4.25640852,2038.7,2038.0,4.11542895]
[1773300774080,4.25640852,2038.7,2037.9,6.10674471]
[1773300774776,4.25640852,2038.7,2037.9,10.22217366]
[1773300775281,4.08353153,2038.5,2037.9,6.10674471]
[1773300776277,4.08353153,2038.3,2037.8,3.61191513]
[1773300776476,4.08353153,2038.3,2037.6,0.24869944]
[1773300776676,4.08353153,2038.1,2037.5,11.74885984]
[1773300776877,4.08353153,2038.1,2037.5,11.98917936]
[1773300777278,4.08353153,2038.1,2037.5,0.24031952]
[1773300777479,4.08353153,2038.1,2037.3,4.11542895]
[1773300777877,4.08353153,2038.1,2037.4,4.11542895]
[1773300778182,4.08353153,2038.1,2037.2,4.11542895]
[1773300780077,4.08353153,2038.1,2037.2,4.35561206]
[1773300781181,4.08353153,2038.1,2037.2,0.24018311]
[1773300781484,4.08353153,2038.1,2037.1,4.12150628]
[1773300782882,4.08353153,2038.1,2036.7,0.24548]
[1773300782883,4.08353153,2037.9,2036.9,4.11542895]
[1773300783781,4.08353153,2037.9,2036.9,4.12085864]
[1773300783977,0.24535,2037.8,2036.9,4.12085864]
[1773300784181,4.08353153,2037.6,2036.9,0.25296249]
[1773300785482,4.08353153,2037.6,2036.9,4.36839144]
[1773300785684,4.08353153,2037.6,2036.9,0.25296249]
[1773300786085,4.08353153,2037.6,2036.9,4.36839144]
[1773300786780,5.73027033,2037.6,2037.1,4.11542895]
[1773300787385,4.08353153,2037.8,2037.1,4.11542895]
[1773300787577,6.429,2037.9,2037.1,4.11542895]
[1773300787982,4.08353153,2038.0,2037.1,4.11542895]
[1773300788182,4.08353153,2038.2,2037.3,4.11542895]
[1773300791582,4.11238506,2038.9,2037.3,4.11542895]
[1773300791886,4.08353153,2038.7,2037.5,4.11542895]
[1773300794087,4.08353153,2038.3,2037.2,4.11542895]
[1773300794280,4.08353153,2038.1,2037.2,4.11542895]
[1773300795093,4.08353153,2038.1,2037.2,4.36417723]
[1773300796692,10.51253153,2038.1,2037.2,4.36417723]
[1773300797281,4.08353153,2038.1,2037.2,4.36417723]
[1773300798890,4.08353153,2038.3,2037.4,4.11542895]
[1773300804897,4.02177262,2038.5,2037.6,4.32757168]
[1773300806696,4.02177262,2038.7,2037.6,4.32757168]
[1773300807198,4.02177262,2038.7,2037.8,4.32757168]
[1773300813004,4.02177262,2038.7,2037.8,4.5680516]
[1773300820820,4.02554993,2038.9,2038.0,4.32757168]
[1773300821013,4.02554993,2038.9,2038.1,4.32757168]
[1773300821214,4.02554993,2038.9,2038.3,4.32757168]
[1773300822229,4.02554993,2038.9,2038.1,3.91504307]
[1773300822715,4.09498874,2038.8,2038.1,3.91504307]
[1773300823916,4.09498874,2038.8,2037.9,3.91504307]
[1773300824218,4.09498874,2038.7,2037.9,3.91504307]
[1773300824914,4.09498874,2038.7,2037.8,0.24047992]
[1773300825219,4.09498874,2038.7,2037.7,3.91504307]
[1773300827320,4.09498874,2038.5,2037.7,4.15548571]
[1773300828826,4.09498874,2038.4,2037.7,0.24044264]
[1773300829116,4.09498874,2038.8,2037.8,3.91504307]
[1773300829525,4.09498874,2038.8,2037.9,3.91504307]
[1773300830827,4.09498874,2038.8,2038.0,3.91370702]
[1773300831730,0.00377731,2038.9,2038.0,3.91370702]
[1773300831930,0.00377731,2038.9,2038.2,3.91370702]
[1773300833327,0.00377731,2038.9,2038.4,3.91370702]
[1773300833526,6.428,2039.2,2038.4,3.91370702]
[1773300833721,10.24746048,2039.2,2038.4,3.91370702]
[1773300834630,3.82310314,2039.2,2038.4,3.91883477]
[1773300837324,0.00364266,2039.2,2038.4,3.91883477]
[1773300837531,3.81946048,2039.4,2038.6,3.91370702]
[1773300838632,3.82351675,2039.4,2038.6,3.91370702]
[1773300839934,0.00405627,2039.4,2038.6,3.91370702]
[1773300840330,3.82351675,2039.4,2038.6,3.91370702]
[1773300840530,0.00405627,2039.4,2038.7,0.24524]
[1773300840727,3.81946048,2039.8,2038.8,3.91370702]
[1773300841730,3.8248473,2039.8,2038.8,3.91370702]
[1773300842840,3.8248473,2039.8,2039.0,3.91370702]
[1773300844444,3.81946048,2039.7,2039.0,3.91370702]
[1773300844641,3.8248473,2039.8,2039.0,3.91370702]
[1773300851645,0.00538682,2039.8,2039.0,3.91370702]
[1773300852852,3.8248473,2039.8,2039.0,3.91370702]
[1773300862460,0.00538682,2039.8,2039.1,3.74562843]
[1773300863662,3.92403614,2039.8,2039.1,3.74562843]
[1773300864967,3.92403614,2039.8,2039.2,3.74562843]
[1773300865666,3.92403614,2039.8,2039.3,3.74562843]
[1773300865866,3.91864932,2039.7,2039.3,3.74562843]
[1773300866167,3.91864932,2040.5,2039.6,3.74562843]
[1773300866372,3.91864932,2040.5,2039.8,3.74562843]
[1773300866663,3.91864932,2040.5,2040.0,3.74562843]
[1773300867270,0.00466056,2040.5,2040.0,3.74925039]
[1773300867565,3.91864932,2040.7,2040.2,3.74562843]
[1773300868566,3.92362737,2040.7,2040.2,3.74562843]
[1773300869064,0.00497805,2040.7,2040.2,3.74562843]
[1773300869264,4.76046337,2040.9,2040.2,3.74562843]
[1773300869265,0.84181405,2040.9,2040.2,3.74562843]
[1773300869464,4.76046337,2040.9,2040.2,3.74562843]
[1773300869866,0.27755137,2040.9,2040.2,3.74562843]
[1773300870064,4.19620069,2040.9,2040.2,3.74562843]
[1773300870268,4.20048597,2040.9,2040.2,3.74562843]
[1773300872671,4.20048597,2040.9,2040.2,3.99251598]
[1773300875581,3.91864932,2040.7,2040.0,3.74562843]
[1773300876078,6.422,2040.6,2040.0,3.74562843]
[1773300876378,3.91864932,2040.5,2040.0,3.74562843]
[1773300876575,3.91864932,2040.5,2040.0,3.75162288]
[1773300877081,3.91864932,2040.5,2039.7,3.74562843]
[1773300877972,3.91864932,2040.5,2039.7,3.74933442]
[1773300878174,3.91864932,2040.3,2039.7,3.74933442]
[1773300878368,3.91864932,2040.1,2039.7,3.74933442]
[1773300878575,3.91864932,2040.1,2039.7,3.45400721]
[1773300881077,3.91864932,2040.1,2039.0,7.61122662]
[1773300881283,3.91864932,2040.1,2039.1,3.74562843]
[1773300882182,3.91864932,2040.1,2039.1,3.75112482]
[1773300885492,3.64142452,2040.6,2039.3,3.51934174]
[1773300885791,3.64142452,2040.5,2039.3,3.51934174]
[1773300886786,3.64142452,2040.3,2039.3,3.51934174]
[1773300888587,3.64142452,2040.1,2039.3,3.51934174]
[1773300888787,3.64142452,2040.0,2039.3,3.51934174]
[1773300889982,3.64142452,2039.8,2039.3,3.51934174]
[1773300891987,3.63661536,2040.1,2039.3,3.76807905]
[1773300892191,3.63661536,2039.9,2039.3,3.76807905]
[1773300892391,10.05961536,2040.0,2039.3,3.76807905]
[1773300894689,3.63661536,2039.9,2039.3,3.76807905]
[1773300899294,6.423,2040.0,2039.1,0.00549639]
[1773300899295,3.63661536,2039.7,2039.1,0.00549639]
[1773300899489,3.63661536,2039.7,2039.1,3.92630397]
[1773300899690,10.05961536,2039.6,2039.1,3.68359862]
[1773300900594,3.63661536,2039.5,2039.1,3.68812277]
[1773300901199,3.63661536,2039.5,2038.9,3.68909501]
[1773300901899,3.63661536,2039.5,2038.6,3.68909501]
[1773300902199,3.88176536,2039.5,2038.6,3.69487492]
[1773300902696,3.88176536,2039.5,2038.6,3.94006769]
[1773300903290,3.88176536,2039.5,2038.6,0.25097268]
[1773300904701,3.88176536,2039.5,2038.6,3.94006769]
[1773300905496,3.88176536,2039.5,2038.6,0.00577991]
[1773300905497,0.24519,2039.1,2038.6,0.00577991]
[1773300905699,3.63661536,2038.9,2038.4,3.68909501]
[1773300906399,3.63661536,2038.9,2038.3,0.24338909]
[1773300906598,3.63661536,2038.9,2038.3,0.00392984]
[1773300907202,3.63661536,2038.7,2038.1,3.68909501]
[1773300907395,3.63661536,2038.5,2037.7,7.61122662]
[1773300907596,3.63661536,2038.5,2037.8,3.68909501]
[1773300908197,3.63661536,2038.5,2037.8,3.69460317]
[1773300909302,3.63661536,2038.5,2037.8,0.00550816]
[1773300909707,3.63661536,2038.3,2037.8,0.00550816]
[1773300909903,3.63661536,2038.1,2037.1,3.68909501]
[1773300910804,3.63661536,2038.1,2037.1,3.6931174]
[1773300911004,3.63661536,2038.1,2037.1,3.93355773]
[1773300911605,6.425,2038.2,2037.1,3.93355773]
[1773300911606,3.63661536,2037.9,2037.1,3.93355773]
[1773300911812,3.63661536,2037.7,2037.1,3.93355773]
[1773300912206,3.63661536,2037.7,2037.1,0.00402239]
[1773300913007,3.63661536,2037.7,2036.7,3.68909501]
[1773300913611,3.63661536,2037.7,2036.7,3.9313745]
[1773300913815,10.06261536,2037.9,2036.7,3.9313745]
[1773300914111,3.63661536,2037.8,2036.7,3.93660294]
[1773300915513,3.63661536,2037.6,2036.7,3.93660294]
[1773300915709,3.64056237,2037.6,2036.7,3.93660294]
[1773300915914,3.63661536,2037.4,2036.7,3.93660294]
[1773300916314,3.63661536,2037.4,2036.7,3.69432345]
[1773300919311,3.63661536,2037.4,2036.7,0.00522844]
[1773300920414,3.63661536,2037.4,2036.7,3.66875787]
[1773300921917,3.39050736,2037.5,2036.7,3.66875787]
[1773300922813,6.429,2037.4,2036.7,3.66875787]
[1773300923206,6.43,2037.4,2036.7,3.66875787]
[1773300924517,9.82050736,2037.4,2036.7,3.66875787]
[1773300926116,3.39050736,2037.3,2036.7,3.66875787]
[1773300926915,0.00394701,2037.6,2036.7,3.66875787]
[1773300928715,3.39445437,2037.6,2036.7,3.66875787]
[1773300930221,6.43394701,2037.6,2036.9,3.66352943]
[1773300931720,3.39050736,2037.5,2036.9,3.66352943]
[1773300934817,3.39050736,2037.5,2036.8,3.90623885]
[1773300935023,3.39050736,2037.5,2036.7,3.66875787]
[1773300935920,3.39050736,2037.3,2036.7,3.66875787]
[1773300937623,6.43,2037.2,2036.7,3.66875787]
[1773300938425,9.82050736,2037.2,2036.7,3.66875787]
[1773300938920,3.39050736,2037.2,2036.7,3.66875787]
[1773300939224,6.431,2037.1,2036.7,3.66875787]
[1773300939421,9.82150736,2037.2,2036.7,3.91552947]
[1773300941625,3.39050736,2037.2,2036.7,3.91552947]
[1773300941827,9.82150736,2037.2,2036.7,3.91552947]
[1773300942928,3.5298809,2037.1,2036.7,3.91552947]
[1773300947030,3.5298809,2037.1,2036.7,0.25200004]
[1773300947431,3.5298809,2037.1,2036.7,0.23880493]
[1773300947622,3.5298809,2037.1,2036.5,3.42235588]
[1773300948128,3.5298809,2037.1,2036.5,3.67354607]
[1773300948523,3.5298809,2037.1,2036.5,3.6780534]
[1773300949324,3.7753209,2037.1,2036.0,11.0335825]
[1773300949536,3.5298809,2037.0,2036.0,3.42235588]
[1773300950429,3.5298809,2037.0,2036.0,3.42681535]
[1773300951926,3.5298809,2037.0,2036.0,3.66888346]
[1773300953235,3.21386831,2036.8,2036.0,3.66888346]
[1773300953636,3.21386831,2036.8,2036.2,3.33444259]
[1773300953837,3.21386831,2036.7,2036.2,3.33444259]
[1773300954239,3.21386831,2036.7,2036.0,3.58097017]
[1773300955933,3.21386831,2036.5,2036.0,3.58097017]
[1773300956138,3.21386831,2036.3,2036.0,0.24652758]
[1773300956338,3.21386831,2036.3,2036.0,3.58097017]
[1773300956638,3.21386831,2036.3,2036.0,0.24652758]
[1773300956834,3.21386831,2036.3,2036.0,0.00445947]
[1773300957035,1.33935732,2037.0,2036.1,3.33444259]
[1773300957036,3.21386831,2037.0,2036.1,3.33444259]
[1773300957232,3.21386831,2036.7,2036.2,3.33444259]
[1773300958842,9.64686831,2036.9,2036.4,3.33444259]
[1773300959544,3.21386831,2036.8,2036.4,3.33444259]
[1773300960739,3.21386831,2036.8,2036.1,3.33444259]
[1773300962842,3.21386831,2036.6,2036.0,3.33890206]
[1773300963043,3.21386831,2036.4,2036.0,0.00445947]
[1773300963448,3.21386831,2036.4,2035.7,3.33444259]
[1773300964443,3.21386831,2036.4,2035.7,3.33992373]
[1773300965141,3.21386831,2036.4,2035.7,3.5841396]
[1773300966439,9.64686831,2036.3,2035.7,3.5841396]
[1773300966640,3.21386831,2036.2,2035.7,3.5841396]
[1773300967343,3.21386831,2036.2,2035.7,0.24969701]
[1773300968339,3.21386831,2036.2,2035.7,3.5841396]
[1773300968745,3.21386831,2036.3,2035.7,3.5841396]
[1773300968947,6.434,2036.2,2035.7,3.5841396]
[1773300969149,9.64786831,2036.2,2035.7,3.5841396]
[1773300969445,3.21386831,2036.1,2035.7,3.5841396]
[1773300969635,3.22008882,2036.1,2035.7,3.5841396]
[1773300969939,0.00622051,2036.1,2035.7,3.5841396]
[1773300973645,3.22008882,2036.1,2035.7,3.5841396]
[1773300974345,6.44022051,2036.1,2035.7,3.5841396]
[1773300974742,0.00622051,2036.1,2035.7,3.5841396]
[1773300975950,3.22008882,2036.1,2035.7,3.33992373]
[1773300978053,0.00622051,2036.1,2035.7,3.33992373]
[1773300978853,6.434,2036.2,2035.7,3.33992373]
[1773300979849,6.43955738,2036.2,2035.7,3.33992373]
[1773300981555,6.43955738,2036.2,2035.9,3.24736478]
[1773300982354,3.15119162,2036.6,2036.0,1.33975528]
[1773300982557,6.434,2036.5,2036.1,3.24736478]
[1773300982756,9.58519162,2036.5,2036.1,3.24736478]
[1773300983157,3.15119162,2036.4,2036.1,3.24736478]
[1773300983358,3.15721328,2036.4,2036.1,3.24736478]
[1773300983960,3.15119162,2036.2,2035.7,3.25284592]
[1773300986159,0.00602166,2036.4,2035.7,3.25284592]
[1773300986358,3.15119162,2036.3,2035.7,3.25284592]
[1773300986555,6.44002166,2036.4,2036.1,3.24736478]
[1773300989561,6.434,2036.4,2036.1,3.24736478]
[1773300989755,6.434,2036.5,2036.1,3.24736478]
[1773300990667,3.15119162,2036.4,2036.1,3.24736478]
[1773300990967,3.15119162,2036.4,2036.0,3.24736478]
[1773300993170,3.15119162,2036.4,2035.9,3.24736478]
[1773300995769,3.15119162,2036.4,2035.9,3.49339847]
[1773300996471,6.43905733,2036.5,2036.0,3.24736478]
[1773300996771,9.59024895,2036.5,2036.0,3.24736478]
[1773300997072,3.15119162,2036.4,2036.0,3.24736478]
[1773300998964,3.15119162,2036.4,2035.9,3.49339847]
[1773301000172,3.15119162,2036.4,2035.9,0.24603369]
[1773301000366,3.15119162,2036.4,2035.8,3.24736478]
[1773301001873,3.15119162,2036.4,2035.7,3.12818974]
[1773301005087,3.15119162,2036.4,2035.7,3.37166884]
[1773301007673,7.77882105,2036.5,2035.7,3.37166884]
[1773301007674,3.18220257,2036.2,2035.7,0.24896024]
[1773301007875,3.18220257,2036.0,2035.6,3.1227086]
[1773301008081,3.18220257,2036.0,2035.4,3.1227086]
[1773301008270,3.18220257,2036.0,2034.9,10.14576372]
[1773301008271,3.42777257,2036.0,2035.2,10.73393522]
[1773301008477,3.18220257,2035.7,2035.2,3.1227086]
[1773301008678,3.18220257,2035.5,2035.1,3.1227086]
[1773301008883,3.18220257,2035.5,2035.1,0.00414335]
[1773301009383,3.18220257,2035.4,2034.8,3.1227086]
[1773301009677,3.18220257,2035.2,2034.8,3.1227086]
[1773301010086,3.18220257,2035.2,2034.8,3.36484577]
[1773301010283,3.18220257,2035.2,2034.8,3.36841981]
[1773301014083,7.38077372,2036.0,2034.8,3.36841981]
[1773301014084,3.14983676,2035.9,2034.8,3.36841981]
[1773301014280,3.14983676,2036.1,2035.5,3.01837817]
[1773301014785,3.14983676,2036.1,2035.0,1.58544372]
[1773301014981,3.14983676,2036.1,2035.1,3.01837817]
[1773301016184,3.14983676,2035.9,2035.1,3.01837817]
[1773301016387,3.14983676,2035.7,2035.1,3.01837817]
[1773301017085,9.58583676,2035.8,2035.1,3.01837817]
[1773301017478,0.00505733,2036.5,2035.5,3.01837817]
[1773301017989,3.15489409,2036.5,2035.6,3.01837817]
[1773301018383,6.436,2036.4,2035.6,3.01837817]
[1773301019884,3.14983676,2036.3,2035.4,7.62804068]
[1773301020084,3.14983676,2036.1,2035.4,3.01837817]
[1773301020486,9.58483676,2036.1,2035.4,3.01837817]
[1773301020784,6.435,2036.1,2035.4,3.01837817]
[1773301020988,3.14983676,2036.0,2035.4,3.01837817]
[1773301022185,0.00505733,2036.5,2035.8,1.75232326]
[1773301022487,6.0358,2037.8,2035.9,2.08000764]
[1773301022488,3.14983676,2036.9,2035.9,2.08000764]
[1773301023684,9.5891856,2036.9,2035.9,2.08000764]
[1773301024490,3.14983676,2036.8,2035.9,2.08000764]
[1773301026189,9.58483676,2036.7,2035.9,2.08000764]
[1773301026589,3.14983676,2036.7,2035.9,2.08000764]
[1773301026892,9.5891856,2036.9,2035.9,2.08000764]
[1773301027691,3.14983676,2036.8,2035.9,2.08000764]
[1773301028494,3.14983676,2036.8,2035.9,2.32940555]
[1773301030601,3.14983676,2036.8,2035.9,0.24939791]
[1773301030791,3.39530676,2036.8,2035.3,2.4438678]
[1773301031597,3.14983676,2036.6,2035.3,2.4438678]
[1773301034988,3.14983676,2036.6,2035.3,2.6844957]
[1773301037790,3.14983676,2036.4,2035.3,2.6844957]
[1773301039397,3.14983676,2036.2,2035.3,2.6844957]
[1773301043305,3.14983676,2036.2,2035.4,2.39041324]
[1773301053111,3.14983676,2036.2,2035.5,2.36722208]
[1773301054610,9.58483676,2036.2,2035.5,2.36722208]
[1773301054804,3.31755735,2036.1,2035.5,2.36722208]
[1773301058213,3.31755735,2036.1,2035.5,9.99526276]
[1773301059711,3.31755735,2036.1,2035.5,11.33544531]
[1773301060114,3.31755735,2036.1,2035.6,7.62804068]
[1773301060413,3.31755735,2036.1,2035.6,9.97603017]
[1773301061611,3.31755735,2036.1,2035.6,7.62804068]
[1773301062616,3.31755735,2036.1,2035.6,9.9729876]
[1773301064719,3.31755735,2036.1,2035.7,2.33747972]
[1773301065018,3.31755735,2036.1,2035.6,7.62804068]
[1773301065019,3.31755735,2036.1,2035.6,9.95790201]
[1773301065721,3.13652105,2035.8,2035.5,5.91479821]
[1773301065912,3.13652105,2035.8,2035.5,0.24703988]
[1773301066114,3.13652105,2035.7,2035.3,2.32214509]
[1773301066316,3.13652105,2035.7,2035.1,4.36212173]
[1773301066816,3.13652105,2035.7,2035.2,3.02193918]
[1773301068319,3.13652105,2035.7,2035.1,4.36212173]
[1773301069024,3.13652105,2035.7,2035.2,3.02193918]
[1773301070625,3.15487963,2036.0,2035.6,3.24575078]
[1773301071827,9.58987963,2036.1,2035.6,3.24575078]
[1773301072127,3.15487963,2036.0,2035.6,3.24575078]
[1773301072626,3.15487963,2036.3,2035.6,3.24575078]
[1773301072827,3.15487963,2036.3,2035.7,4.58593333]
[1773301074933,3.15487963,2036.3,2035.9,4.58593333]
[1773301075823,3.15487963,2036.3,2035.9,3.24575078]
[1773301078638,3.15487963,2036.6,2036.0,3.24575078]
[1773301078832,9.58987963,2036.5,2036.0,3.24575078]
[1773301079032,9.58987963,2036.5,2036.1,1.34018255]
[1773301079339,6.435,2036.6,2036.4,3.24575078]
[1773301079537,2.30049654,2036.6,2036.4,0.00370357]
[1773301079737,5.45537617,2036.6,2036.4,0.00370357]
[1773301080742,1.65849654,2036.6,2036.4,3.24945435]
[1773301080931,3.15487963,2036.7,2036.4,3.24945435]
[1773301081640,9.59422847,2036.9,2036.4,3.24945435]
[1773301083445,0.00434884,2036.9,2036.5,1.34018255]
[1773301083742,0.00434884,2036.9,2036.6,3.24575078]
[1773301083934,3.15922847,2036.9,2036.6,3.24575078]
[1773301084139,0.00434884,2036.9,2036.6,3.24575078]